bitfinex/quotes_SOLUSD_20220218
["timestamp","ask_amount","ask_price","bid_price","bid_amount"]
[1645196823969,42.5867737,92.465,92.345,6.0]
[1645196823970,16.2399,92.46,92.361,147.00008375]
[1645196824167,1.47707746,92.467,92.371,106.6]
[1645196824370,1.47707746,92.475,92.373,106.6]
[1645196824569,1.47707746,92.482,92.375,106.6]
[1645196824768,1.47707746,92.485,92.381,106.6]
[1645196824968,106.6,92.483,92.381,106.6]
[1645196825168,16.239,92.5,92.38,29.0586]
[1645196825169,1.47707746,92.479,92.382,40.87339593]
[1645196825369,106.6,92.477,92.382,40.87339593]
[1645196825570,106.6,92.475,92.382,40.87339593]
[1645196825770,106.6,92.473,92.382,40.87339593]
[1645196825968,106.6,92.471,92.382,40.87339593]
[1645196826169,16.242,92.45,92.382,40.87339593]
[1645196826370,37.2408191,92.449,92.382,40.87339593]
[1645196826569,5.41,92.466,92.382,40.87339593]
[1645196826770,1.47707746,92.481,92.383,2.8793831]
[1645196826971,1.47707746,92.494,92.384,6.0]
[1645196827268,1.47707746,92.502,92.385,106.85]
[1645196827468,54.26313322,92.508,92.4,12.82]
[1645196827669,106.6,92.489,92.401,41.91148672]
[1645196827903,106.6,92.487,92.401,41.91148672]
[1645196828500,64.52,92.48,92.39,16.2373]
[1645196828699,106.6,92.471,92.383,48.2642]
[1645196828900,106.6,92.449,92.383,48.2642]
[1645196829101,0.25,92.448,92.383,48.2642]
[1645196829301,106.6,92.447,92.383,48.2642]
[1645196829507,106.6,92.445,92.383,48.2642]
[1645196829701,5.41,92.444,92.383,48.2642]
[1645196829900,0.25,92.443,92.383,48.2642]
[1645196830904,0.25,92.46,92.383,48.2642]
[1645196831202,5.409,92.459,92.383,48.2642]
[1645196831401,0.25,92.458,92.383,48.2642]
[1645196831607,5.41,92.479,92.384,2.6293831]
[1645196831903,5.41,92.476,92.385,46.40498557]
[1645196832106,106.6,92.475,92.385,46.40498557]
[1645196832303,53.29440885,92.478,92.386,0.25]
[1645196832704,106.6,92.477,92.386,0.25]
[1645196832907,106.6,92.477,92.385,46.40498557]
[1645196833104,16.2385,92.47,92.385,46.40498557]
[1645196833603,106.6,92.473,92.385,46.40498557]
[1645196833604,6.0,92.469,92.385,46.40498557]
[1645196833804,6.25,92.468,92.385,46.40498557]
[1645196834006,5.409,92.477,92.386,106.6]
[1645196834206,1.47707746,92.486,92.391,106.6]
[1645196834504,1.47707746,92.5,92.393,106.6]
[1645196834707,6.0,92.499,92.394,0.25]
[1645196835005,1.47707746,92.504,92.396,106.6]
[1645196835211,106.6,92.508,92.395,5.408]
[1645196835212,145.63905847,92.502,92.397,11.658]
[1645196835405,16.2365,92.49,92.41,16.235]
[1645196835607,0.25,92.489,92.41,16.235]
[1645196835803,0.25,92.489,92.399,50.71679484]
[1645196835804,106.85,92.489,92.399,50.71679484]
[1645196836008,106.85,92.489,92.4,6.0]
[1645196836009,64.52,92.482,92.4,6.0]
[1645196836205,64.52,92.482,92.378,5.408]
[1645196836206,106.85,92.481,92.378,5.408]
[1645196836409,106.6,92.459,92.378,5.408]
[1645196836606,106.6,92.457,92.378,5.408]
[1645196836907,106.6,92.455,92.384,42.04115387]
[1645196837107,106.6,92.453,92.378,5.408]
[1645196837310,106.6,92.451,92.378,5.408]
[1645196837506,106.6,92.449,92.378,5.408]
[1645196837707,106.6,92.439,92.349,22.5294]
[1645196837908,106.6,92.437,92.349,22.5294]
[1645196838212,106.6,92.435,92.35,54.69162237]
[1645196838407,47.06818661,92.436,92.35,54.69162237]
[1645196838408,106.6,92.433,92.35,54.69162237]
[1645196838608,106.6,92.431,92.35,54.69162237]
[1645196838907,106.6,92.419,92.35,54.69162237]
[1645196839107,106.6,92.417,92.35,54.69162237]
[1645196839307,0.25,92.416,92.35,54.69162237]
[1645196839507,5.412,92.415,92.35,54.69162237]
[1645196839911,16.2529,92.41,92.35,54.69162237]
[1645196840310,106.6,92.408,92.35,54.69162237]
[1645196840510,106.6,92.408,92.318,2.6293831]
[1645196840511,106.6,92.406,92.318,2.6293831]
[1645196840814,106.6,92.404,92.301,23.5722]
[1645196841016,171.12,92.402,92.301,23.5722]
[1645196841312,187.3724,92.4,92.281,2.6293831]
[1645196841513,171.12,92.398,92.282,43.75250753]
[1645196841714,64.52,92.385,92.282,43.75250753]
[1645196841912,106.6,92.382,92.282,43.75250753]
[1645196842110,52.41851675,92.381,92.283,22.9734]
[1645196842310,0.25,92.38,92.296,2.6293831]
[1645196842512,5.414,92.379,92.297,50.73877837]
[1645196842718,16.2592,92.37,92.297,50.73877837]
[1645196843012,5.414,92.404,92.298,106.6]
[1645196843311,6.0,92.403,92.301,106.6]
[1645196843511,6.0,92.403,92.303,106.6]
[1645196843712,6.0,92.403,92.321,106.6]
[1645196843914,55.02013945,92.402,92.323,106.6]
[1645196844113,6.0,92.401,92.324,0.25]
[1645196844316,12.82,92.46,92.324,0.25]
[1645196844317,5.413,92.439,92.324,2.8793831]
[1645196844514,5.412,92.44,92.326,106.6]
[1645196844713,21.6603,92.44,92.331,106.6]
[1645196844915,5.412,92.44,92.331,106.6]
[1645196845118,6.0,92.439,92.331,106.6]
[1645196845314,5.412,92.447,92.325,48.5565]
[1645196845315,63.25172046,92.438,92.333,106.6]
[1645196845514,0.25,92.437,92.333,106.6]
[1645196845716,106.6,92.435,92.334,2.6293831]
[1645196845916,106.6,92.433,92.334,2.6293831]
[1645196846117,106.6,92.431,92.334,2.6293831]
[1645196846316,0.25,92.43,92.36,16.2459]
[1645196846543,106.6,92.428,92.361,48.042971]
[1645196846748,106.6,92.426,92.334,2.6293831]
[1645196846942,5.662,92.425,92.334,2.6293831]
[1645196847243,5.412,92.425,92.334,2.6293831]
[1645196847443,0.25,92.424,92.332,24.7998]
[1645196847645,208.95542024,92.422,92.333,47.19465288]
[1645196847843,106.6,92.42,92.333,47.19465288]
[1645196848045,171.12,92.412,92.333,47.19465288]
[1645196848245,106.6,92.41,92.333,47.19465288]
[1645196848446,106.6,92.399,92.333,47.19465288]
[1645196848746,106.6,92.397,92.333,47.19465288]
[1645196848948,106.6,92.395,92.333,47.19465288]
[1645196849147,106.6,92.391,92.333,47.19465288]
[1645196849347,106.6,92.389,92.333,47.19465288]
[1645196849546,106.6,92.387,92.333,47.19465288]
[1645196849748,106.6,92.377,92.333,47.19465288]
[1645196849951,5.663,92.376,92.333,47.19465288]
[1645196850153,0.25,92.39,92.333,47.19465288]
[1645196850549,0.25,92.39,92.301,23.2218]
[1645196850749,5.414,92.389,92.334,2.07738061]
[1645196850949,106.6,92.379,92.334,2.07738061]
[1645196851148,0.25,92.378,92.334,2.07738061]
[1645196851346,106.6,92.377,92.334,2.07738061]
[1645196851552,0.25,92.376,92.335,43.45096191]
[1645196851848,106.6,92.374,92.335,43.45096191]
[1645196852050,151.85460194,92.372,92.335,43.45096191]
[1645196852253,122.8581,92.37,92.334,2.07738061]
[1645196852449,106.6,92.368,92.334,2.07738061]
[1645196852651,5.664,92.369,92.334,2.07738061]
[1645196852652,106.6,92.366,92.334,2.07738061]
[1645196852851,106.6,92.364,92.334,2.07738061]
[1645196853049,106.6,92.362,92.334,2.07738061]
[1645196853249,106.6,92.36,92.334,2.07738061]
[1645196853652,5.414,92.369,92.334,2.07738061]
[1645196853850,5.414,92.369,92.272,23.4084]
[1645196853851,5.414,92.369,92.296,2.07738061]
[1645196854250,5.414,92.369,92.297,54.06746596]
[1645196854753,106.6,92.368,92.296,2.07738061]
[1645196854952,106.6,92.366,92.296,2.07738061]
[1645196855158,106.6,92.364,92.296,2.07738061]
[1645196855353,106.6,92.362,92.296,2.07738061]
[1645196855552,6.0,92.365,92.296,2.07738061]
[1645196855553,106.6,92.352,92.296,2.07738061]
[1645196855855,122.8637,92.34,92.296,2.07738061]
[1645196856051,106.6,92.338,92.296,2.07738061]
[1645196856253,64.52,92.333,92.296,2.07738061]
[1645196856453,171.37,92.332,92.296,2.07738061]
[1645196856653,106.6,92.33,92.296,2.07738061]
[1645196856852,106.6,92.328,92.296,2.07738061]
[1645196857054,16.2687,92.32,92.296,2.07738061]
[1645196857453,44.89188805,92.327,92.296,2.07738061]
[1645196857454,0.25,92.319,92.296,2.07738061]
[1645196857657,5.416,92.318,92.296,2.07738061]
[1645196857853,0.25,92.317,92.296,2.07738061]
[1645196858254,5.416,92.316,92.296,2.07738061]
[1645196858454,0.25,92.315,92.296,2.07738061]
[1645196858656,5.416,92.314,92.296,2.07738061]
[1645196858859,0.25,92.313,92.24,49.7337]
[1645196859258,106.6,92.309,92.24,49.7337]
[1645196859456,106.6,92.307,92.24,49.7337]
[1645196859655,106.6,92.305,92.24,49.7337]
[1645196859861,5.668,92.306,92.24,49.7337]
[1645196859862,106.6,92.303,92.24,49.7337]
[1645196860056,106.6,92.301,92.178,74.5709]
[1645196860457,106.6,92.299,92.223,50.72918561]
[1645196860661,16.2726,92.29,92.18,16.2767]
[1645196860857,64.52,92.288,92.18,16.2767]
[1645196861056,5.418,92.287,92.179,46.9075]
[1645196861257,6.0,92.286,92.211,2.6293831]
[1645196861458,5.418,92.285,92.211,2.6293831]
[1645196861656,45.38680419,92.287,92.247,52.18892661]
[1645196861857,16.277,92.28,92.247,52.18892661]
[1645196862158,106.6,92.308,92.247,52.18892661]
[1645196862357,5.418,92.3,92.247,52.18892661]
[1645196862557,5.418,92.306,92.247,52.18892661]
[1645196862761,43.06247837,92.305,92.247,52.18892661]
[1645196862965,16.2708,92.3,92.247,52.18892661]
[1645196863161,54.2274,92.33,92.249,2.6293831]
[1645196863360,5.417,92.329,92.249,2.6293831]
[1645196863659,5.417,92.35,92.249,2.6293831]
[1645196863861,39.5855428,92.35,92.249,2.6293831]
[1645196864058,5.417,92.349,92.25,48.4892]
[1645196864258,106.6,92.348,92.25,48.4892]
[1645196864458,42.78826525,92.319,92.25,64.7547]
[1645196864659,16.2668,92.32,92.25,64.7547]
[1645196864858,5.417,92.343,92.25,64.7547]
[1645196865059,106.6,92.348,92.251,2.6293831]
[1645196865262,106.6,92.346,92.251,2.6293831]
[1645196865460,106.6,92.344,92.251,2.6293831]
[1645196865658,106.6,92.342,92.251,2.6293831]
[1645196865860,5.417,92.341,92.251,109.2293831]
[1645196866063,42.96398101,92.343,92.251,109.2293831]
[1645196866064,16.2623,92.34,92.26,16.2638]
[1645196866260,16.2623,92.34,92.25,48.4892]
[1645196866261,6.0,92.339,92.261,106.6]
[1645196866460,6.0,92.339,92.261,109.2293831]
[1645196866663,5.417,92.366,92.261,109.2293831]
[1645196866863,6.0,92.338,92.262,26.7178831]
[1645196867063,5.417,92.369,92.28,16.2599]
[1645196867261,165.42536128,92.368,92.28,16.2599]
[1645196867464,5.415,92.367,92.281,42.55899955]
[1645196867661,64.52,92.366,92.281,42.55899955]
[1645196867861,5.665,92.365,92.281,42.55899955]
[1645196868363,64.52,92.363,92.281,42.55899955]
[1645196868563,112.265,92.362,92.281,42.55899955]
[1645196870062,112.6,92.361,92.281,42.55899955]
[1645196870265,5.665,92.36,92.281,42.55899955]
[1645196870669,64.52,92.359,92.281,42.55899955]
[1645196870866,112.015,92.358,92.281,42.55899955]
[1645196871468,112.015,92.358,92.282,2.6293831]
[1645196871968,112.015,92.358,92.281,42.55899955]
[1645196872568,0.25,92.357,92.282,2.6293831]
[1645196872787,16.2603,92.35,92.282,2.6293831]
[1645196872971,5.415,92.356,92.282,109.2293831]
[1645196873173,5.416,92.38,92.282,109.2293831]
[1645196873470,4.41650625,92.45,92.284,106.6]
[1645196873471,1.47707746,92.401,92.284,106.6]
[1645196873671,5.415,92.4,92.285,0.25]
[1645196873871,38.97245973,92.375,92.285,2.8793831]
[1645196874071,38.97245973,92.375,92.286,2.6293831]
[1645196874270,38.97245973,92.375,92.3,12.82]
[1645196874476,5.415,92.4,92.301,53.95550103]
[1645196874872,5.415,92.4,92.302,23.1921]
[1645196875274,5.415,92.4,92.302,25.8214831]
[1645196875475,16.2538,92.38,92.303,106.6]
[1645196875676,5.414,92.409,92.303,109.2293831]
[1645196875872,5.414,92.409,92.304,2.8793831]
[1645196876073,1.47707746,92.42,92.304,2.8793831]
[1645196876373,5.413,92.419,92.305,2.6293831]
[1645196876572,16.2464,92.42,92.331,106.6]
[1645196876775,1.47707746,92.44,92.341,106.6]
[1645196876972,5.412,92.439,92.35,12.82]
[1645196877172,1.47707746,92.452,92.36,12.82]
[1645196877374,1.47707746,92.452,92.361,106.6]
[1645196877573,477.83072107,92.425,92.37,16.2391]
[1645196877773,477.83072107,92.425,92.371,106.6]
[1645196877976,5.41,92.457,92.371,106.6]
[1645196878172,1.47707746,92.461,92.371,2.6293831]
[1645196878376,5.41,92.46,92.372,46.4156]
[1645196878574,1.47707746,92.466,92.372,46.4156]
[1645196878776,1.47707746,92.47,92.373,8.6293831]
[1645196878974,5.409,92.469,92.373,8.6293831]
[1645196879174,1.47707746,92.471,92.374,109.4793831]
[1645196879372,441.38112263,92.506,92.375,6.0]
[1645196879373,1.47707746,92.486,92.375,6.0]
[1645196879574,1.47707746,92.485,92.39,12.82]
[1645196879778,1.47707746,92.485,92.391,6.25]
[1645196879975,441.38112263,92.506,92.392,47.6751772]
[1645196879976,1.47707746,92.491,92.392,47.6751772]
[1645196880179,40.15763909,92.484,92.394,106.6]
[1645196880374,40.15763909,92.484,92.395,6.25]
[1645196880776,40.15763909,92.484,92.395,8.8793831]
[1645196881082,6.0,92.483,92.396,2.6293831]
[1645196881280,5.408,92.482,92.392,47.6751772]
[1645196881480,1.47707746,92.48,92.392,47.6751772]
[1645196881678,6.0,92.483,92.392,47.6751772]
[1645196881877,109.2293831,92.481,92.3,5.0]
[1645196882079,1.47707746,92.477,92.33,16.2425]
[1645196882281,7.13607746,92.476,92.37,12.82]
[1645196882479,1.47707746,92.47,92.37,12.82]
[1645196882680,7.13607746,92.469,92.37,12.82]
[1645196882881,47.2511142,92.468,92.373,49.397357]
[1645196883182,5.41,92.467,92.373,49.397357]
[1645196883481,16.2425,92.46,92.373,49.397357]
[1645196883684,0.25,92.459,92.374,0.25]
[1645196883882,0.25,92.466,92.374,0.25]
[1645196884285,0.25,92.466,92.373,49.397357]
[1645196884484,16.2422,92.46,92.373,49.397357]
[1645196884682,5.66,92.459,92.373,49.397357]
[1645196884890,8.2893831,92.459,92.373,49.397357]
[1645196885088,2.6293831,92.458,92.373,49.397357]
[1645196885385,16.2464,92.44,92.373,49.397357]
[1645196885683,5.66,92.439,92.373,49.397357]
[1645196885884,5.41,92.439,92.373,49.397357]
[1645196886082,5.41,92.456,92.373,49.397357]
[1645196887584,0.25,92.455,92.373,49.397357]
[1645196887810,16.2437,92.45,92.373,49.397357]
[1645196888009,46.57405549,92.449,92.373,49.397357]
[1645196888209,49.20343859,92.449,92.373,49.397357]
[1645196888609,173.7493831,92.448,92.373,49.397357]
[1645196888814,106.6,92.427,92.373,49.397357]
[1645196889011,0.25,92.426,92.373,49.397357]
[1645196890411,16.2497,92.42,92.373,49.397357]
[1645196890612,0.25,92.419,92.373,49.397357]
[1645196891212,5.41,92.439,92.374,106.6]
[1645196891415,16.2423,92.46,92.375,0.25]
[1645196891615,1.47707746,92.478,92.375,0.25]
[1645196891816,5.409,92.477,92.376,106.6]
[1645196892015,6.0,92.476,92.376,109.2293831]
[1645196892211,11.409,92.475,92.377,0.25]
[1645196892413,11.409,92.475,92.377,2.6293831]
[1645196892612,11.409,92.475,92.378,2.6293831]
[1645196892814,6.0,92.475,92.379,0.25]
[1645196893014,21.6468,92.48,92.379,0.25]
[1645196893213,6.0,92.479,92.379,0.25]
[1645196893414,5.409,92.478,92.379,0.25]
[1645196893715,6.0,92.479,92.379,0.25]
[1645196894017,5.409,92.478,92.379,0.25]
[1645196894214,5.409,92.478,92.378,2.6293831]
[1645196894418,6.0,92.479,92.381,106.6]
[1645196894815,6.0,92.489,92.383,106.6]
[1645196895018,6.0,92.489,92.385,106.6]
[1645196895217,6.0,92.489,92.384,6.25]
[1645196895218,6.0,92.489,92.401,106.6]
[1645196895417,39.25602499,92.495,92.403,106.6]
[1645196895614,39.25602499,92.495,92.404,0.25]
[1645196895815,16.2343,92.5,92.404,0.25]
[1645196896016,1.47707746,92.514,92.405,2.6293831]
[1645196896215,476.52779253,92.515,92.421,106.6]
[1645196896420,478.00486999,92.515,92.422,0.25]
[1645196896814,47.57443292,92.514,92.422,51.97875831]
[1645196897014,52.98143292,92.514,92.422,51.97875831]
[1645196897214,5.407,92.517,92.423,106.6]
[1645196897415,1.47707746,92.518,92.424,0.25]
[1645196897617,1.47707746,92.524,92.425,106.6]
[1645196897915,1.47707746,92.534,92.427,106.6]
[1645196898120,1.47707746,92.534,92.44,12.82]
[1645196898316,106.6,92.529,92.43,12.82]
[1645196898517,1.47707746,92.518,92.43,12.82]
[1645196898717,48.28645556,92.516,92.43,12.82]
[1645196898917,5.406,92.515,92.43,12.82]
[1645196899317,6.25,92.514,92.43,12.82]
[1645196899718,6.0,92.513,92.43,12.82]
[1645196899917,0.25,92.512,92.43,12.82]
[1645196900322,106.85,92.512,92.43,12.82]
[1645196900617,16.2323,92.51,92.43,12.82]
[1645196900817,0.25,92.509,92.43,12.82]
[1645196901420,0.25,92.509,92.424,24.7819]
[1645196901421,106.6,92.503,92.424,24.7819]
[1645196901720,64.52,92.504,92.422,51.72875831]
[1645196901721,41.20430194,92.495,92.422,51.72875831]
[1645196901918,6.88407746,92.494,92.422,51.72875831]
[1645196902118,1.47707746,92.489,92.422,51.72875831]
[1645196902319,5.658,92.488,92.422,51.72875831]
[1645196902720,1.47707746,92.485,92.422,51.72875831]
[1645196902930,5.658,92.484,92.422,51.72875831]
[1645196903129,106.6,92.483,92.398,23.2132]
[1645196903330,1.47707746,92.47,92.36,12.82]
[1645196903529,106.6,92.468,92.365,2.6293831]
[1645196903728,106.6,92.462,92.35,12.82]
[1645196903936,106.6,92.444,92.348,2.6293831]
[1645196904130,16.2487,92.42,92.353,44.30101202]
[1645196904333,0.25,92.419,92.353,44.30101202]
[1645196904536,106.6,92.417,92.353,44.30101202]
[1645196904731,106.6,92.415,92.326,47.06]
[1645196904931,171.12,92.413,92.326,47.06]
[1645196905131,106.6,92.409,92.326,47.06]
[1645196905330,106.6,92.407,92.326,47.06]
[1645196905530,106.6,92.405,92.326,47.06]
[1645196905730,5.663,92.404,92.327,48.73305659]
[1645196906333,16.2537,92.4,92.327,48.73305659]
[1645196906534,0.25,92.399,92.327,48.73305659]
[1645196906732,5.413,92.398,92.327,48.73305659]
[1645196906933,0.25,92.397,92.327,48.73305659]
[1645196907132,5.413,92.396,92.327,48.73305659]
[1645196907334,0.25,92.395,92.327,48.73305659]
[1645196907533,5.413,92.394,92.327,48.73305659]
[1645196907733,0.25,92.393,92.327,48.73305659]
[1645196907935,5.413,92.392,92.327,48.73305659]
[1645196908133,0.25,92.391,92.327,48.73305659]
[1645196908335,21.6658,92.39,92.327,48.73305659]
[1645196908536,0.25,92.389,92.327,48.73305659]
[1645196908734,5.413,92.388,92.327,48.73305659]
[1645196908936,0.25,92.387,92.327,48.73305659]
[1645196909136,5.413,92.386,92.327,48.73305659]
[1645196909438,0.25,92.385,92.327,48.73305659]
[1645196910237,106.85,92.385,92.327,48.73305659]
[1645196910538,46.94280262,92.379,92.327,48.73305659]
[1645196910737,0.25,92.385,92.327,48.73305659]
[1645196910738,5.664,92.378,92.327,48.73305659]
[1645196910938,0.25,92.377,92.327,48.73305659]
[1645196911137,69.934,92.408,92.327,48.73305659]
[1645196911338,16.254,92.39,92.327,48.73305659]
[1645196911839,16.254,92.39,92.328,2.6293831]
[1645196912238,16.254,92.39,92.327,48.73305659]
[1645196913041,16.2508,92.4,92.328,2.6293831]
[1645196913641,16.2508,92.4,92.327,48.73305659]
[1645196913841,6.0,92.399,92.327,48.73305659]
[1645196914042,41.63853025,92.409,92.328,2.6293831]
[1645196914244,11.413,92.408,92.328,2.6293831]
[1645196914848,6.0,92.408,92.328,109.2293831]
[1645196915048,0.25,92.407,92.328,109.2293831]
[1645196915245,6.25,92.428,92.328,109.2293831]
[1645196915447,5.412,92.427,92.329,0.25]
[1645196915644,0.25,92.426,92.329,0.25]
[1645196915845,5.412,92.425,92.329,0.25]
[1645196916046,0.25,92.424,92.33,2.6293831]
[1645196916245,5.412,92.423,92.33,2.6293831]
[1645196916445,16.2473,92.42,92.33,18.8766831]
[1645196916645,5.662,92.419,92.33,18.8766831]
[1645196916846,5.662,92.419,92.331,2.6293831]
[1645196917248,5.662,92.419,92.327,48.73305659]
[1645196917249,112.6,92.418,92.327,48.73305659]
[1645196917445,41.35627116,92.416,92.327,48.73305659]
[1645196917645,5.662,92.415,92.327,48.73305659]
[1645196917846,16.249,92.41,92.33,0.9791985]
[1645196918049,5.663,92.409,92.33,0.9791985]
[1645196918448,5.413,92.409,92.331,2.6293831]
[1645196918649,6.0,92.418,92.341,106.6]
[1645196918848,5.412,92.441,92.342,0.25]
[1645196919050,6.0,92.44,92.344,106.6]
[1645196919350,6.88707746,92.455,92.346,106.6]
[1645196919548,6.0,92.454,92.361,106.6]
[1645196919750,6.0,92.453,92.362,0.25]
[1645196919947,5.41,92.455,92.362,0.25]
[1645196920148,5.41,92.455,92.363,109.2293831]
[1645196920149,6.0,92.454,92.363,109.2293831]
[1645196920348,6.0,92.454,92.363,2.6293831]
[1645196920349,16.2421,92.45,92.363,2.6293831]
[1645196920549,5.66,92.449,92.362,40.20699466]
[1645196920950,1.47707746,92.448,92.362,40.20699466]
[1645196921153,64.52,92.445,92.362,40.20699466]
[1645196921348,1.47707746,92.44,92.362,40.20699466]
[1645196921750,16.2505,92.42,92.362,40.20699466]
[1645196921950,43.0735264,92.418,92.362,40.20699466]
[1645196922150,106.6,92.416,92.323,5.41]
[1645196922352,106.6,92.414,92.323,5.41]
[1645196922550,106.6,92.412,92.346,0.97687446]
[1645196922751,5.662,92.411,92.346,0.97687446]
[1645196923153,5.662,92.411,92.347,54.81941085]
[1645196923352,16.2505,92.41,92.347,57.44879395]
[1645196923553,0.25,92.409,92.347,54.81941085]
[1645196924552,6.25,92.409,92.347,54.81941085]
[1645196924751,5.412,92.408,92.347,54.81941085]
[1645196924954,0.25,92.407,92.347,54.81941085]
[1645196925959,0.25,92.408,92.347,54.81941085]
[1645196926158,5.412,92.407,92.347,54.81941085]
[1645196926455,48.52338392,92.406,92.347,54.81941085]
[1645196927958,48.52338392,92.406,92.349,0.97643879]
[1645196928155,6.0,92.405,92.349,0.97643879]
[1645196928358,0.25,92.404,92.349,0.97643879]
[1645196928657,16.2505,92.4,92.349,0.97643879]
[1645196932161,0.25,92.399,92.349,0.97643879]
[1645196932362,16.2521,92.39,92.349,0.97643879]
[1645196932563,0.25,92.389,92.342,0.97614836]
[1645196933165,0.25,92.389,92.343,50.10970737]
[1645196933362,1.47707746,92.387,92.343,50.10970737]
[1645196933561,5.663,92.386,92.343,50.10970737]
[1645196933762,5.413,92.386,92.343,50.10970737]
[1645196933961,0.25,92.385,92.343,50.10970737]
[1645196934361,16.2537,92.38,92.343,50.10970737]
[1645196934560,0.25,92.385,92.343,50.10970737]
[1645196934561,0.25,92.379,92.343,50.10970737]
[1645196934763,6.89007746,92.388,92.343,50.10970737]
[1645196935064,78.062,92.546,92.344,2.6293831]
[1645196935065,1.47707746,92.398,92.344,2.6293831]
[1645196935262,1.47707746,92.401,92.344,2.6293831]
[1645196935462,1.47707746,92.405,92.344,2.6293831]
[1645196935663,1.47707746,92.41,92.344,2.6293831]
[1645196936468,1.47707746,92.411,92.344,2.6293831]
[1645196936686,1.47707746,92.411,92.343,50.10970737]
[1645196936687,16.2484,92.41,92.343,50.10970737]
[1645196936986,1.47707746,92.407,92.343,50.10970737]
[1645196937188,1.47707746,92.403,92.343,50.10970737]
[1645196937386,1.72707746,92.402,92.343,50.10970737]
[1645196937588,1.47707746,92.401,92.343,50.10970737]
[1645196937787,0.25,92.4,92.343,50.10970737]
[1645196938486,1.47707746,92.395,92.343,50.10970737]
[1645196938689,37.56962525,92.393,92.343,50.10970737]
[1645196938893,5.663,92.392,92.343,50.10970737]
[1645196939090,6.0,92.391,92.343,50.10970737]
[1645196939290,6.0,92.39,92.343,50.10970737]
[1645196939486,5.413,92.426,92.343,50.10970737]
[1645196939487,1.47707746,92.397,92.343,50.10970737]
[1645196939687,6.0,92.396,92.343,50.10970737]
[1645196940092,1.47707746,92.399,92.343,50.10970737]
[1645196940288,6.0,92.398,92.343,50.10970737]
[1645196940887,6.25,92.397,92.343,50.10970737]
[1645196941087,0.25,92.397,92.343,50.10970737]
[1645196941289,1.72707746,92.4,92.343,50.10970737]
[1645196941487,0.25,92.4,92.343,50.10970737]
[1645196941888,1.47707746,92.403,92.344,2.8793831]
[1645196942089,1.47707746,92.42,92.344,109.4793831]
[1645196942289,1.47707746,92.421,92.345,2.6293831]
[1645196942793,1.47707746,92.408,92.343,50.10970737]
[1645196942988,106.6,92.406,92.343,50.10970737]
[1645196943188,148.14595174,92.403,92.343,50.10970737]
[1645196943387,5.662,92.402,92.343,50.10970737]
[1645196943587,5.662,92.402,92.31,12.82]
[1645196943588,16.2539,92.39,92.31,12.82]
[1645196943788,0.25,92.389,92.31,12.82]
[1645196944188,0.25,92.389,92.318,106.6]
[1645196944588,0.25,92.389,92.324,44.23093545]
[1645196944589,42.61806727,92.389,92.324,44.23093545]
[1645196944891,42.61806727,92.389,92.306,2.6293831]
[1645196944892,16.2534,92.38,92.306,2.6293831]
[1645196945089,0.25,92.379,92.306,2.6293831]
[1645196945288,5.414,92.378,92.298,106.6]
[1645196945489,0.25,92.377,92.298,106.6]
[1645196945688,5.414,92.376,92.298,106.6]
[1645196945887,45.04068602,92.375,92.324,42.58954448]
[1645196946287,1.47707746,92.374,92.298,106.6]
[1645196946490,16.2555,92.37,92.295,106.6]